[Event "Czech Championship U20 Open 2023"]
[Site "Jaromerice nad Rokytnou"]
[Date "2023.03.10"]
[Round "1.1"]
[White "Jares, Michal"]
[Black "Hlavina, Matous"]
[Result "1/2-1/2"]
[ECO "A05"]
[WhiteElo "2177"]
[BlackElo "2091"]
[Annotator "TA"]
[PlyCount "85"]
[EventDate "2023.03.10"]
[EventType "tourn"]
[EventCountry "CZE"]
[SourceTitle "playchess.com"]
[Source "ChessBase"]
[SourceQuality "1"]
[TimeControl "40/5400+30:1800+30"]

{[%evp 12,85,18,6,2,13,7,0,0,8,12,7,4,4,0,0,0,0,7,0,0,-6,-9,-18,0,0,11,-10,52,53,165,46,59,52,54,51,58,43,65,0,45,32,72,17,14,0,50,42,43,47,40,10,18,12,7,8,60,11,43,3,24,0,42,17,108,27,120,117,104,0,12,-16,0,0,0,-21]} 1. Nf3 {[%emt 0:00:05]} Nf6 {[%emt 0:00:06]} 2. g3 {[%emt 0:00:07]} d5 {[%emt 0:00:07]} 3. Bg2 {[%emt 0:00:02]} c6 {[%emt 0:00:13]} 4. d4 {[%emt 0:00:20]} Bg4 {[%emt 0:00:54]} 5. c4 {[%emt 0:00:44]} e6 {[%emt 0:01:17]} 6. O-O {[%emt 0:00:35]} Nbd7 {[%emt 0:00:04]} 7. Qb3 {[%emt 0:02:55]} Qb6 {[%emt 0:00:06] D11: Slav Defence: 3 Nf3 sidelines and 3...Nf6 4 e3 Bg4.} 8. c5 {[%emt 0:00:44]} Qa6 {[%emt 0:00:06]} 9. Nc3 {[%emt 0:02:33]} Be7 {[%emt 0:01:40]} 10. h3 {[%emt 0:11:45]} Bh5 {[%emt 0:01:44]} 11. g4 {[%emt 0:04:06]} Bg6 {[%emt 0:00:27]} 12. Nh4 {[%emt 0:00:51]} b6 {[%emt 0:10:45]} 13. cxb6 {[%emt 0:03:41] [#]} axb6 $146 {[%emt 0:06:41]} ({Predecessor:} 13... Qxb6 14. g5 Nh5 15. Nxg6 hxg6 16. e4 O-O 17. Qd1 dxe4 18. Nxe4 Rad8 19. Qa4 Qc7 {0-1 Adly,A (2473)-Marcelin,C (2441) Corus-C Wijk aan Zee 2006 (11)}) 14. g5 {[%emt 0:04:27] Black must now prevent Nxg6.} Nh5 {[%emt 0:12:01]} 15. Nxg6 {[%emt 0:01:37]} hxg6 {[%emt 0:00:12]} 16. e4 {[%emt 0:00:31][%cal Re4d5] Hoping for exd5.} O-O {[%emt 0:03:37]} 17. Qc2 {[%emt 0:08:43]} Rac8 {[%emt 0:01:28]} 18. Be3 {[%emt 0:01:38]} Qa5 {[%emt 0:17:07]} 19. a3 {[%emt 0:05:15]} dxe4 {[%emt 0:07:37]} ({Black should play} 19... b5 $11) 20. Bxe4 $14 {[%emt 0:03:01]} e5 {[%emt 0:09:00]} (20... Bxg5 $2 21. b4 Qa7 22. Bxg5 $18) (20... Bd6 $14) 21. b4 {[%emt 0:02:56]} (21. Rad1 $18) 21... Qa7 $1 {[%emt 0:00:44]} 22. dxe5 {[%emt 0:02:37]} Nxe5 {[%emt 0:00:17]} 23. Na4 $1 {[%emt 0:02:50]} c5 {[%emt 0:04:15]} 24. bxc5 {[%emt 0:01:02]} bxc5 {[%emt 0:00:17]} 25. Nc3 {[%emt 0:01:21]} (25. Rab1 $14 Qd7 26. Bg2 (26. Bxc5 $2 {is the wrong capture.} Nf4 $19)) 25... Nc6 {[%emt 0:06:12]} 26. Qa4 $1 {[%emt 0:03:54] Wards off Nd4} Qd7 {[%emt 0:05:17][%cal Od7h3]} 27. Nd5 {[%emt 0:07:55] White is more active.} (27. Rfd1 $16 Qe8 28. Rab1) 27... Bd6 $11 {[%emt 0:01:58]} 28. Bg2 {[%emt 0:01:11] Nb6 would be deadly. A strong pair of Bishops.} Qf5 {[%emt 0:03:17]} (28... Qd8 $11) 29. Qe4 $14 {[%emt 0:05:23]} Qxe4 {[%emt 0:02:10]} 30. Bxe4 {[%emt 0:00:14]} Rfe8 {[%emt 0:01:22]} 31. Nb6 {[%emt 0:13:49]} Rc7 {[%emt 0:00:39]} 32. Bxc6 {[%emt 0:00:52]} Rxc6 {[%emt 0:00:21]} 33. Nc4 {[%emt 0:00:31]} Bf4 {[%emt 0:01:10]} (33... Bc7 $11) 34. Kg2 {[%emt 0:02:32]} (34. a4 $14) 34... Bc7 {[%emt 0:01:08]} 35. Kf3 {[%emt 0:01:04]} f5 {[%emt 0:01:04]} 36. gxf6 {[%emt 0:01:42]} gxf6 {[%emt 0:01:27]} 37. Rfd1 {[%emt 0:01:34]} Kf7 {[%emt 0:00:35] [#]} (37... f5 $11 {remains equal.}) 38. Rd7+ {[%emt 0:00:51]} (38. a4 $1 $16) 38... Re7 {[%emt 0:00:18] [#]} (38... Ke6 $1 $11 39. Rh7 (39. Rad1 Rh8 $11) 39... Be5) 39. Rxe7+ $1 $16 {[%emt 0:02:51]} Kxe7 {[%emt 0:00:01]} 40. Re1 {[%emt 0:01:02]} ({White should try} 40. a4 $16) 40... Kf7 {[%emt 0:00:36] The position is equal.} 41. Nd2 {[%emt 0:18:19]} Ng7 {[%emt 0:01:48]} 42. Rc1 {[%emt 0:01:18]} Ne6 {[%emt 0:00:41]} 43. Ne4 {[%emt 0:04:15] Weighted Error Value: White=0.20 (precise) /Black=0.27 (precise)} 1/2-1/2

[Event "Czech Championship U20 Open 2023"]
[Site "Jaromerice nad Rokytnou"]
[Date "2023.03.10"]
[Round "1.2"]
[White "Mach, Petr"]
[Black "Svanda, Ondrej"]
[Result "0-1"]
[ECO "A04"]
[WhiteElo "2167"]
[BlackElo "2366"]
[Annotator "TA"]
[PlyCount "48"]
[EventDate "2023.03.10"]
[EventType "tourn"]
[EventCountry "CZE"]
[SourceTitle "playchess.com"]
[Source "ChessBase"]
[SourceQuality "1"]
[TimeControl "40/5400+30:1800+30"]

{[%evp 12,48,0,-6,-10,-20,-13,-29,-26,-35,-18,-33,-28,-55,-53,-49,-17,-37,0,-112,-98,-98,-99,-151,-128,-103,-97,-145,-150,-164,-141,-162,-172,-162,-166,-320,-310,-311,-290]} 1. Nf3 {[%emt 0:00:05]} c5 {[%emt 0:00:08]} 2. g3 {[%emt 0:00:05]} Nc6 {[%emt 0:00:03]} 3. d4 {[%emt 0:00:04]} cxd4 {[%emt 0:00:04]} 4. Nxd4 {[%emt 0:00:03]} g6 {[%emt 0:00:04]} 5. Bg2 {[%emt 0:01:27]} Bg7 {[%emt 0:00:02]} 6. Nb3 {[%emt 0:00:13]} d6 {[%emt 0:01:00]} 7. O-O {[%emt 0:00:21] 7.Nc3 gains popularity.} h5 {[%emt 0:00:01] A04: Unusual lines after 1 Nf3 and King's Indian Attack.} 8. h4 {[%emt 0:15:34]} Be6 {[%emt 0:00:25]} 9. Nc3 {[%emt 0:01:06]} Nf6 {[%emt 0:04:06] Black has an edge.} 10. Bg5 {[%emt 0:00:49]} Qd7 {[%emt 0:01:12]} 11. Re1 {[%emt 0:02:04] [#]} O-O $146 {[%emt 0:03:01]} ({Predecessor:} 11... Ng4 12. Rb1 O-O 13. Nd5 Rfe8 14. e4 Rac8 15. c3 Nce5 16. Nd4 Bxd5 17. exd5 Nc4 {1-0 Jeran,B (2205)-Blomqvist,E (2535) Titled Tuesday intern op 10th Nov blitz 2020 (6)}) 12. e4 {[%emt 0:01:10]} Ng4 {[%emt 0:05:26]} 13. Qd2 {[%emt 0:06:28]} Rfe8 {[%emt 0:04:05]} 14. Rad1 {[%emt 0:00:11]} Nge5 {[%emt 0:01:10]} 15. Qf4 {[%emt 0:17:42]} (15. Qe2 $1 $11 {keeps the balance.}) 15... Qc8 {[%emt 0:14:02]} 16. Bh6 {[%emt 0:00:19]} Bh8 $1 {[%emt 0:02:31]} 17. Rb1 {[%emt 0:10:06]} (17. Qc1 $142) 17... Ng4 {[%emt 0:03:39] ...Kh7 is the strong threat.} 18. Qd2 {[%emt 0:03:35]} Nce5 {[%emt 0:07:37][%cal Bc6e5,Be5c4,Bc4b2,Bb2a4,Ba4c3][%mdl 32]} 19. Bg5 {[%emt 0:01:18] [#]} (19. Qc1 $142) 19... Nc4 $1 $17 {[%emt 0:02:11] Black is more active.} 20. Qe2 {[%emt 0:02:28] [#]} Nxb2 {[%emt 0:02:41][%mdl 576] Decoy} 21. Nd5 {[%emt 0:00:04]} Bxd5 {[%emt 0:00:23]} 22. exd5 {[%emt 0:00:06] [#]} Na4 $1 {And now ...Nc3 would win.} 23. Be4 $2 {[%emt 0:04:00]} (23. Bd2 {might work better.}) 23... Nc3 $19 {[%emt 0:00:56][%csl LRa2,LRb1,LRe2]} 24. Qd3 {[%cal Oe4g6]} Ne5 {[%emt 0:01:31] Weighted Error Value: White=0.31/Black=0.08 (flawless)} 0-1

[Event "Czech Championship U20 Open 2023"]
[Site "Jaromerice nad Rokytnou"]
[Date "2023.03.10"]
[Round "1.3"]
[White "Ocelak, Jakub"]
[Black "Smolik, Jachym"]
[Result "1-0"]
[ECO "C02"]
[WhiteElo "2190"]
[BlackElo "2297"]
[Annotator "TA"]
[PlyCount "77"]
[EventDate "2023.03.10"]
[EventType "tourn"]
[EventCountry "CZE"]
[SourceTitle "playchess.com"]
[Source "ChessBase"]
[SourceQuality "1"]
[TimeControl "40/5400+30:1800+30"]

{[%evp 16,77,10,6,47,29,28,30,37,24,31,26,29,27,70,54,80,74,74,89,84,81,86,87,89,90,90,0,94,85,85,58,74,72,81,85,79,0,9,0,166,173,371,369,439,302,754,529,972,989,989,925,946,907,1185,1185,948,1145,1152,1152,1135,1114,1152,1151]} 1. e4 {[%emt 0:00:38]} e6 {[%emt 0:00:02]} 2. d4 {[%emt 0:01:18]} d5 {[%emt 0:00:06]} 3. e5 {[%emt 0:01:18]} c5 {[%emt 0:00:08]} 4. c3 {[%emt 0:00:03]} Nc6 {[%emt 0:00:07]} 5. Nf3 {[%emt 0:00:11]} Nge7 {[%emt 0:00:20][%cal Bg8e7,Be7f5,Bf5h4,Bh4f3][%mdl 32]} 6. Na3 {[%emt 0:04:30]} cxd4 {[%emt 0:00:43]} 7. cxd4 {[%emt 0:00:24]} Nf5 {[%emt 0:00:26]} 8. Nc2 {[%emt 0:01:53]} Bd7 {[%emt 0:07:55]} 9. Bd3 $1 {[%emt 0:06:18] The main line 9.Bd3 scores better than 9.Be2.} Nh4 {[%emt 0:05:53] C02: French: Advance Variation.} 10. O-O {[%emt 0:10:12]} Nxf3+ {[%emt 0:00:18]} 11. Qxf3 {[%emt 0:00:04]} Qb6 {[%emt 0:04:02] White has an edge.} 12. Be3 {[%emt 0:05:32]} Rc8 {[%emt 0:02:50] [#]} 13. Rfc1 $146 {[%emt 0:27:10]} ({Predecessor:} 13. Qe2 h5 14. Rab1 Nb4 15. Nxb4 Bxb4 16. Rbc1 Rxc1 17. Rxc1 a6 18. Qc2 Be7 19. b3 {1-0 Aliavdin,N (2355)-Moskalets,S (2138) Dnipropetrovsk Sinitsin Memorial 2006 (11)}) 13... Na5 {[%emt 0:19:36]} 14. b3 {[%emt 0:02:03]} Nc6 {[%emt 0:06:31]} 15. h4 {[%emt 0:06:06][%cal Bh2h4,Bh4h5][%mdl 32]} a5 {[%emt 0:08:05]} 16. h5 {[%emt 0:03:45]} h6 {[%emt 0:00:17]} 17. Qg4 {[%emt 0:05:06]} Ne7 {[%emt 0:03:06]} 18. Ne1 {[%emt 0:03:25]} Rxc1 {[%emt 0:01:30]} 19. Rxc1 {[%emt 0:00:13]} (19. Bxc1 Bb5 $11) 19... Rg8 {[%emt 0:15:26] [#]} 20. Bh7 $1 {[%emt 0:03:11] White is much more active.} Rh8 {[%emt 0:00:01]} 21. Bd3 {[%emt 0:00:09]} (21. Bb1 $16) 21... Nc6 {[%emt 0:07:58]} (21... Rg8 $1 $11 {remains equal.}) 22. Kh2 {[%emt 0:02:43]} Qb4 {[%emt 0:09:54]} 23. Nf3 {[%emt 0:10:09]} Qa3 {[%emt 0:00:53]} 24. Rc2 $36 {[%emt 0:01:24][%mdl 2048] White is on the roll.} a4 {[%emt 0:01:25]} 25. Bc1 {[%emt 0:01:23]} Qb4 {[%emt 0:02:43]} 26. Bd2 {[%emt 0:01:02]} (26. bxa4 $16 {Threatens to win with Bb5.} Qxa4 27. Bd2) 26... Qa3 $11 {[%emt 0:00:01]} 27. Bc1 {[%emt 0:00:17]} Qe7 {[%emt 0:00:35]} (27... Qb4 $11) 28. bxa4 $18 {[%emt 0:01:03]} f5 $2 {[%emt 0:01:25]} (28... Nd8 29. a5 (29. Rc7 Qb4 $14) 29... Nc6) 29. exf6 {[%emt 0:01:53]} Qxf6 {[%emt 0:00:19]} 30. Bf4 {[%emt 0:01:24] Prevents Bd6} Kd8 $2 {[%emt 0:00:58]} (30... e5 31. Qg6+ (31. dxe5 Nxe5 32. Bg6+ Nxg6 $18) 31... Kd8 32. Qxf6+ {[%mdl 64] Remove Defender} (32. Bxe5 Qxg6 33. Bxg6 Nxe5 $18) 32... gxf6) 31. Be5 {[%emt 0:00:35] White is clearly winning.} Nxe5 {[%emt 0:01:00]} 32. dxe5 {[%emt 0:00:01]} Qe7 {[%emt 0:00:22]} 33. Bb5 {[%emt 0:00:54]} Qf7 {[%emt 0:01:14]} 34. Nd4 {[%emt 0:00:26]} Be7 {[%emt 0:00:28]} 35. Bxd7 {[%emt 0:00:21]} Kxd7 {[%emt 0:00:01] [#]} 36. Nxe6 $1 {[%emt 0:00:23][%mdl 512]} Qxe6 {[%emt 0:00:50] [#]} 37. Rc7+ $3 {[%emt 0:00:06][%mdl 576] Deflection} Kxc7 {[%emt 0:00:04]} 38. Qxe6 {[%emt 0:00:04]} Bg5 {[%emt 0:00:53]} 39. Qxd5 {[%emt 0:00:40] Beautiful play by Ocelak!   Weighted Error Value: White=0.34/Black=0.43} 1-0

[Event "Czech Championship U20 Open 2023"]
[Site "Jaromerice nad Rokytnou"]
[Date "2023.03.10"]
[Round "1.4"]
[White "Hrbek, Stepan"]
[Black "Gnojek, Petr"]
[Result "1-0"]
[ECO "B40"]
[WhiteElo "2340"]
[BlackElo "2313"]
[Annotator "TA"]
[PlyCount "97"]
[EventDate "2023.03.10"]
[EventType "tourn"]
[EventCountry "CZE"]
[SourceTitle "playchess.com"]
[Source "ChessBase"]
[SourceQuality "1"]
[TimeControl "40/5400+30:1800+30"]

{[%evp 11,97,14,14,11,27,14,31,25,41,26,72,24,51,53,91,97,99,87,92,91,119,84,97,85,133,122,199,199,200,194,317,318,308,297,426,425,413,399,352,312,283,260,298,300,296,256,299,281,305,305,301,302,305,299,302,263,332,317,333,337,345,345,342,342,353,341,345,311,316,302,321,308,383,340,397,395,396,366,427,442,622,612,669,659,804,785,12831,9688]} 1. e4 {[%emt 0:00:03]} c5 {[%emt 0:00:08]} 2. Nf3 {[%emt 0:00:13]} e6 {[%emt 0:00:08]} 3. g3 {[%emt 0:00:47]} Nc6 {[%emt 0:04:20]} 4. Bg2 {[%emt 0:00:15]} Nf6 {[%emt 0:03:21]} 5. d3 {[%emt 0:00:18]} d6 {[%emt 0:01:56]} 6. O-O {[%emt 0:00:37]} Be7 {[%emt 0:00:06]} 7. b3 {[%emt 0:00:38] [#] B30: Sicilian: 2...Nc6 3 Bb5, lines without ...g6.} Nd7 $146 {[%emt 0:08:29]} ({Predecessor:} 7... O-O 8. Bb2 e5 9. Nc3 a6 10. a4 Bg4 11. h3 Bxf3 12. Bxf3 Nd4 13. Bg2 b5 14. f4 b4 {1-0 Livaic,L (2569)-Mickiewicz,P (2284) Titled Tuesday intern op 21st Jun Late blitz 2022 (5)}) 8. Bb2 {[%emt 0:10:40]} Bf6 {[%emt 0:01:37]} 9. c3 {[%emt 0:00:49] White is slightly better.} O-O {[%emt 0:04:05]} 10. d4 {[%emt 0:01:22]} Qc7 {[%emt 0:09:01]} (10... d5 $11) 11. Nbd2 {[%emt 0:03:24]} ({White should play} 11. Na3 $16) 11... g6 {[%emt 0:01:17]} 12. Nc4 {[%emt 0:07:12]} Rd8 {[%emt 0:06:40]} 13. Ne3 {[%emt 0:08:02]} Ne7 {[%emt 0:10:21]} 14. Qe2 {[%emt 0:05:53]} Bg7 {[%emt 0:00:06]} 15. Rad1 {[%emt 0:00:11] White is more active.} Nf6 {[%emt 0:11:05]} 16. e5 {[%emt 0:14:53]} dxe5 {[%emt 0:00:10]} 17. dxe5 {[%emt 0:00:08]} Rxd1 {[%emt 0:00:47]} ({Better is} 17... Nfd5) 18. Rxd1 $16 {[%emt 0:00:23]} Nd7 {[%emt 0:00:09]} (18... Nfd5 $16) 19. c4 $18 {[%emt 0:00:54]} h5 {[%emt 0:04:50] [#]} 20. g4 $1 {[%emt 0:04:21][%cal Bg3g4,Bg4h5][%mdl 32] Strongly threatening gxh5.} Nc6 {[%emt 0:05:31]} (20... h4 {was worth a try.} 21. g5 (21. Nxh4 Nxe5 22. Qd2 N5c6 $14) 21... Qa5) 21. gxh5 {[%emt 0:02:50]} Ndxe5 {[%emt 0:00:04]} 22. Nxe5 {[%emt 0:01:14]} Nxe5 {[%emt 0:00:35]} (22... Nd4 {keeps fighting.} 23. Bxd4 cxd4) 23. f4 {[%emt 0:02:31]} Nc6 {[%emt 0:00:46]} 24. Bxc6 {[%emt 0:01:55]} (24. Bxg7 Kxg7 25. Bxc6 bxc6 $18) 24... bxc6 {[%emt 0:00:12]} 25. hxg6 {[%emt 0:08:59]} fxg6 {[%emt 0:03:55]} 26. Bxg7 {[%emt 0:05:48]} Kxg7 {[%emt 0:01:15]} 27. Qb2+ {[%emt 0:00:07]} e5 {[%emt 0:05:16]} 28. Qxe5+ {[%emt 0:00:43]} ({Don't do} 28. fxe5 Be6 29. Rd6 Qe7 $18) 28... Qxe5 {[%emt 0:00:04]} 29. fxe5 {[%emt 0:00:05][%mdl 4096] Endgame KRB-KRN} Bh3 {[%emt 0:00:02]} 30. Kf2 {[%emt 0:00:19]} Re8 {[%emt 0:04:49]} 31. Rd6 {[%emt 0:00:20]} Rxe5 {[%emt 0:00:14]} 32. Rxc6 {[%emt 0:00:16]} Kh6 {[%emt 0:03:14]} 33. Ra6 {[%emt 0:01:39]} Re7 {[%emt 0:04:47]} 34. Ra5 {[%emt 0:00:47]} Rc7 {[%emt 0:01:18]} 35. Nd5 {[%emt 0:00:24]} Rf7+ {[%emt 0:00:03]} 36. Kg3 {[%emt 0:00:53]} Bf5 {[%emt 0:00:04]} 37. Rxc5 {[%emt 0:02:10]} Be4 {[%emt 0:00:04]} 38. Nf4 {[%emt 0:01:31]} Rd7 {[%emt 0:03:59]} 39. Re5 {[%emt 0:00:25]} Bb1 {[%emt 0:00:47]} 40. Re2 {[%emt 0:01:06]} Rd1 {[%emt 0:00:15]} 41. Nd5 {[%emt 0:31:52]} Bd3 {[%emt 0:30:20]} 42. Rf2 {[%emt 0:01:59]} Be4 {[%emt 0:02:06]} 43. Nc3 {[%emt 0:04:34]} Rd3+ {[%emt 0:00:08]} 44. Kf4 {[%emt 0:00:06]} Bf5 {[%emt 0:02:29]} 45. Nd5 {[%emt 0:01:31] White is clearly winning.} a5 {[%emt 0:01:34]} (45... Rd4+ $142 46. Ke5 Re4+ 47. Kd6 Re8) 46. Ke5 {[%emt 0:02:53]} Bg4 {[%emt 0:00:00]} 47. c5 {[%emt 0:00:00]} Bd7 {[%emt 0:00:00]} 48. Kd6 {[%emt 0:00:00]} Bf5 {[%emt 0:00:00] [#]} 49. Rxf5 $1 {[%emt 0:00:00] White took control after the opening.   Weighted Error Value: White=0.06 (flawless) /Black=0.29 (precise)} 1-0

[Event "Czech Championship U20 Open 2023"]
[Site "Jaromerice nad Rokytnou"]
[Date "2023.03.10"]
[Round "1.5"]
[White "Jun, Rudolf"]
[Black "Mica, Marek"]
[Result "1/2-1/2"]
[ECO "B52"]
[WhiteElo "2152"]
[BlackElo "2248"]
[Annotator "TA"]
[PlyCount "44"]
[EventDate "2023.03.10"]
[EventType "tourn"]
[EventCountry "CZE"]
[SourceTitle "playchess.com"]
[Source "ChessBase"]
[SourceQuality "1"]
[TimeControl "40/5400+30:1800+30"]

{[%evp 15,44,0,0,-5,-12,0,0,-13,0,0,14,7,14,0,0,0,27,0,0,0,0,0,0,0,2,0,0,0,0,0,0]} 1. e4 {[%emt 0:00:07]} c5 {[%emt 0:00:11]} 2. Nf3 {[%emt 0:00:51]} d6 {[%emt 0:00:11]} 3. Bb5+ {[%emt 0:01:51]} Bd7 {[%emt 0:00:07]} 4. Bxd7+ {[%emt 0:00:09]} Qxd7 {[%emt 0:00:08]} 5. O-O {[%emt 0:01:04]} Nc6 {[%emt 0:00:35]} 6. c3 {[%emt 0:01:56]} d5 {[%emt 0:02:23]} 7. exd5 {[%emt 0:05:25]} Qxd5 {[%emt 0:00:10]} 8. d4 {[%emt 0:03:26]} e6 {[%emt 0:05:14][%cal Be7e6,Be6e5][%mdl 32]} 9. dxc5 {[%emt 0:02:42] Hoping for Qxd5. B52: Sicilian: Moscow Variation with 3...Bd7.} Qxd1 {[%emt 0:00:22]} 10. Rxd1 {[%emt 0:00:08]} Bxc5 {[%emt 0:00:07]} 11. Bf4 {[%emt 0:05:41] [#]} f6 $146 {[%emt 0:05:11]} ({Predecessor:} 11... Nf6 12. Nbd2 Nh5 13. Be5 Nxe5 14. Nxe5 Nf6 15. Ndc4 Rc8 16. Nd6+ Bxd6 17. Rxd6 {½-½ Mokshanov,A (2434)-Kokarev,D (2631) RUS-chT2 Sochi 2021 (7.3)}) 12. Nbd2 {[%emt 0:01:41][%cal Bb1d2,Bd2e4,Be4d6,Bd6f5][%mdl 32]} e5 {[%emt 0:04:08]} 13. Ne4 {[%emt 0:01:16]} Bb6 {[%emt 0:01:29]} 14. Be3 {[%emt 0:02:23]} Bxe3 $1 {[%emt 0:02:00]} 15. fxe3 {[%emt 0:03:22]} b6 {[%emt 0:03:20]} 16. Nd6+ {[%emt 0:02:18]} Ke7 $1 {[%emt 0:07:55] The position is equal.} 17. Nf5+ {[%emt 0:03:08]} Kf7 $1 {[%emt 0:01:44]} 18. Nd6+ {[%emt 0:01:13]} Ke7 {[%emt 0:06:32]} 19. Nf5+ {[%emt 0:00:41]} Kf7 $1 {[%emt 0:00:10]} 20. Nd6+ {[%emt 0:00:23]} Ke7 {[%emt 0:05:42]} 21. Nf5+ {[%emt 0:00:08]} Kf7 $1 {[%emt 0:00:07]} 22. Nd6+ {[%emt 0:00:27]} Ke7 {Not much happened in this game.   Weighted Error Value: White=0.04 (flawless) /Black=0.03 (flawless)} 1/2-1/2